[Event "Late-Titled-Tuesday-Blitz-July-09-2024"]
[Site "Chess.com"]
[Date "2024.07.09"]
[Round "11"]
[White "i_like_explosions"]
[Black "jk13"]
[Result "1/2-1/2"]
[WhiteElo "2569"]
[BlackElo "2672"]
[TimeControl "180+1"]
[EndTime "16:06:26 PDT"]
[Termination "Game drawn - insufficient material"]

1. d4 {[%clk 0:03:00.9]} 1... Nf6 {[%clk 0:02:58.8]} 2. Bg5 {[%clk 0:03:00.5]}
2... Ne4 {[%clk 0:02:58.9]} 3. Bf4 {[%clk 0:03:00.3]} 3... Nc6 {[%clk
0:02:59.6]} 4. f3 {[%clk 0:02:59.8]} 4... Nf6 {[%clk 0:02:59.6]} 5. e4 {[%clk
0:02:59.7]} 5... d5 {[%clk 0:02:59.7]} 6. e5 {[%clk 0:02:59.7]} 6... Nd7 {[%clk
0:03:00.4]} 7. Qd2 {[%clk 0:02:57.1]} 7... Nb6 {[%clk 0:03:00.5]} 8. c3 {[%clk
0:02:54.6]} 8... Bf5 {[%clk 0:03:00.7]} 9. Bd3 {[%clk 0:02:53.9]} 9... Bxd3
{[%clk 0:02:58.5]} 10. Qxd3 {[%clk 0:02:53.9]} 10... e6 {[%clk 0:02:59.4]} 11.
Nd2 {[%clk 0:02:52.7]} 11... Be7 {[%clk 0:02:59.1]} 12. Ne2 {[%clk 0:02:51]}
12... Qd7 {[%clk 0:02:56.1]} 13. O-O {[%clk 0:02:48.6]} 13... O-O {[%clk
0:02:54.6]} 14. a4 {[%clk 0:02:36.9]} 14... f6 {[%clk 0:02:41.7]} 15. exf6
{[%clk 0:02:31.1]} 15... Bxf6 {[%clk 0:02:42.6]} 16. a5 {[%clk 0:02:25.4]} 16...
Nc8 {[%clk 0:02:42.9]} 17. b4 {[%clk 0:02:23.5]} 17... e5 {[%clk 0:02:37.3]} 18.
dxe5 {[%clk 0:02:13.7]} 18... Nxe5 {[%clk 0:02:34.7]} 19. Bxe5 {[%clk
0:02:10.3]} 19... Bxe5 {[%clk 0:02:35.6]} 20. Nd4 {[%clk 0:02:10.2]} 20... Nd6
{[%clk 0:02:32.8]} 21. Rae1 {[%clk 0:02:09.8]} 21... Rae8 {[%clk 0:02:31.9]} 22.
g3 {[%clk 0:02:08.5]} 22... c6 {[%clk 0:02:25]} 23. f4 {[%clk 0:02:08.4]} 23...
Bf6 {[%clk 0:02:16.8]} 24. Kf2 {[%clk 0:01:49.3]} 24... h5 {[%clk 0:01:50.6]}
25. Rxe8 {[%clk 0:01:45]} 25... Rxe8 {[%clk 0:01:50.4]} 26. Re1 {[%clk
0:01:45.5]} 26... Rxe1 {[%clk 0:01:43.6]} 27. Kxe1 {[%clk 0:01:46.4]} 27... Qh3
{[%clk 0:01:42.2]} 28. Qe2 {[%clk 0:01:22.2]} 28... h4 {[%clk 0:01:35.9]} 29.
Qf2 {[%clk 0:01:06.1]} 29... hxg3 {[%clk 0:01:28]} 30. hxg3 {[%clk 0:01:07]}
30... a6 {[%clk 0:01:17.3]} 31. Ne2 {[%clk 0:00:58.5]} 31... Qf5 {[%clk
0:01:12.3]} 32. Qc5 {[%clk 0:00:47.9]} 32... Ne4 {[%clk 0:00:50.4]} 33. Nxe4
{[%clk 0:00:47.8]} 33... Qxe4 {[%clk 0:00:51.3]} 34. Kd2 {[%clk 0:00:45.8]}
34... Kf7 {[%clk 0:00:49.7]} 35. Qd6 {[%clk 0:00:45.7]} 35... Qe7 {[%clk
0:00:31.8]} 36. Qxe7+ {[%clk 0:00:27.5]} 36... Kxe7 {[%clk 0:00:32.7]} 37. g4
{[%clk 0:00:25.8]} 37... Kd6 {[%clk 0:00:30.4]} 38. g5 {[%clk 0:00:22.7]} 38...
Bd8 {[%clk 0:00:29.4]} 39. Nd4 {[%clk 0:00:23.3]} 39... g6 {[%clk 0:00:26.2]}
40. Ke3 {[%clk 0:00:23.2]} 40... b6 {[%clk 0:00:22]} 41. axb6 {[%clk 0:00:19.2]}
41... Bxb6 {[%clk 0:00:22.9]} 42. f5 {[%clk 0:00:19]} 42... gxf5 {[%clk
0:00:18.2]} 43. Kf4 {[%clk 0:00:19.2]} 43... Bd8 {[%clk 0:00:08.6]} 44. Nxf5+
{[%clk 0:00:19]} 44... Ke6 {[%clk 0:00:07.3]} 45. Nd4+ {[%clk 0:00:19.3]} 45...
Kd6 {[%clk 0:00:07.2]} 46. Kf5 {[%clk 0:00:19.8]} 46... Be7 {[%clk 0:00:05.1]}
47. g6 {[%clk 0:00:19.9]} 47... Bf8 {[%clk 0:00:05.5]} 48. Ne6 {[%clk
0:00:20.3]} 48... Bh6 {[%clk 0:00:05]} 49. Ng5 {[%clk 0:00:18]} 49... Ke7 {[%clk
0:00:04.6]} 50. Nf7 {[%clk 0:00:14.7]} 50... Bg7 {[%clk 0:00:04.9]} 51. Ne5
{[%clk 0:00:15]} 51... Kd6 {[%clk 0:00:04.4]} 52. Nf7+ {[%clk 0:00:12.5]} 52...
Ke7 {[%clk 0:00:04.7]} 53. Ne5 {[%clk 0:00:06]} 53... Kd6 {[%clk 0:00:04.6]} 54.
Nf7+ {[%clk 0:00:06.4]} 54... Kc7 {[%clk 0:00:04.8]} 55. Ne5 {[%clk 0:00:06.8]}
55... c5 {[%clk 0:00:03.5]} 56. bxc5 {[%clk 0:00:06.8]} 56... a5 {[%clk
0:00:04.2]} 57. Nd3 {[%clk 0:00:02.5]} 57... a4 {[%clk 0:00:03.5]} 58. Ke6
{[%clk 0:00:03.4]} 58... a3 {[%clk 0:00:02.6]} 59. Nc1 {[%clk 0:00:04]} 59...
Kc6 {[%clk 0:00:02.5]} 60. Kf7 {[%clk 0:00:03.6]} 60... Bxc3 {[%clk 0:00:03.1]}
61. g7 {[%clk 0:00:03.7]} 61... Bxg7 {[%clk 0:00:02.9]} 62. Kxg7 {[%clk
0:00:04.3]} 62... d4 {[%clk 0:00:03.1]} 63. Kf6 {[%clk 0:00:04.2]} 63... Kxc5
{[%clk 0:00:03]} 64. Ke5 {[%clk 0:00:03.9]} 64... Kc4 {[%clk 0:00:03.6]} 65. Ke4
{[%clk 0:00:03.9]} 65... d3 {[%clk 0:00:03.6]} 66. Ke3 {[%clk 0:00:02.4]} 66...
Kc3 {[%clk 0:00:03.8]} 67. Na2+ {[%clk 0:00:02.9]} 67... Kc2 {[%clk 0:00:03.3]}
68. Nb4+ {[%clk 0:00:03.2]} 68... Kb1 {[%clk 0:00:03]} 69. Kxd3 {[%clk
0:00:02.9]} 69... Kb2 {[%clk 0:00:03.9]} 70. Kc4 {[%clk 0:00:02.8]} 70... Kb1
{[%clk 0:00:03.7]} 71. Kc3 {[%clk 0:00:03.2]} 71... Ka1 {[%clk 0:00:03.7]} 72.
Kb3 {[%clk 0:00:03.6]} 72... a2 {[%clk 0:00:03.8]} 73. Nxa2 {[%clk 0:00:03.8]}
1/2-1/2

[Event "Late-Titled-Tuesday-Blitz-July-09-2024"]
[Site "Chess.com"]
[Date "2024.07.09"]
[Round "11"]
[White "TheAlienParty"]
[Black "Proteuo"]
[Result "0-1"]
[WhiteElo "2321"]
[BlackElo "2443"]
[TimeControl "180+1"]
[EndTime "16:06:30 PDT"]
[Termination "Proteuo won on time"]

1. e4 {[%clk 0:02:26.1]} 1... e5 {[%clk 0:02:58.5]} 2. Nf3 {[%clk 0:02:25.1]}
2... Nc6 {[%clk 0:02:58.4]} 3. Bb5 {[%clk 0:02:24.1]} 3... a6 {[%clk 0:02:58.3]}
4. Bxc6 {[%clk 0:02:24.2]} 4... dxc6 {[%clk 0:02:58.3]} 5. d4 {[%clk 0:02:24.6]}
5... exd4 {[%clk 0:02:58.2]} 6. Qxd4 {[%clk 0:02:25.1]} 6... Qxd4 {[%clk
0:02:55.5]} 7. Nxd4 {[%clk 0:02:26]} 7... Bd7 {[%clk 0:02:56.2]} 8. O-O {[%clk
0:02:20.2]} 8... O-O-O {[%clk 0:02:56.3]} 9. Bf4 {[%clk 0:02:19.3]} 9... c5
{[%clk 0:02:56]} 10. Nb3 {[%clk 0:02:17.1]} 10... b6 {[%clk 0:02:55.2]} 11. Nc3
{[%clk 0:02:16.4]} 11... Ne7 {[%clk 0:02:48.4]} 12. Nd2 {[%clk 0:01:48]} 12...
Ng6 {[%clk 0:02:47.6]} 13. Bg3 {[%clk 0:01:47.1]} 13... Bc6 {[%clk 0:02:46.4]}
14. Nf3 {[%clk 0:01:40.5]} 14... Bd6 {[%clk 0:02:43.8]} 15. Ng5 {[%clk
0:01:38.8]} 15... Rd7 {[%clk 0:02:25.9]} 16. Rad1 {[%clk 0:01:30.1]} 16... h6
{[%clk 0:02:22.4]} 17. e5 {[%clk 0:01:14]} 17... Nxe5 {[%clk 0:02:02.9]} 18.
Bxe5 {[%clk 0:01:11.1]} 18... hxg5 {[%clk 0:02:02.6]} 19. Bg3 {[%clk 0:00:46.9]}
19... f5 {[%clk 0:01:54.3]} 20. f4 {[%clk 0:00:44.2]} 20... gxf4 {[%clk
0:01:47]} 21. Bxf4 {[%clk 0:00:40.5]} 21... Bxf4 {[%clk 0:01:42.1]} 22. Rxf4
{[%clk 0:00:40.1]} 22... g6 {[%clk 0:01:38.3]} 23. Re1 {[%clk 0:00:37.5]} 23...
Rd2 {[%clk 0:01:31.6]} 24. Rf2 {[%clk 0:00:37.2]} 24... Rhd8 {[%clk 0:01:30.7]}
25. Ree2 {[%clk 0:00:34.1]} 25... R2d4 {[%clk 0:01:25.4]} 26. h3 {[%clk
0:00:33.6]} 26... b5 {[%clk 0:01:22.6]} 27. Re6 {[%clk 0:00:33]} 27... R8d6
{[%clk 0:01:17.4]} 28. Re1 {[%clk 0:00:20.3]} 28... b4 {[%clk 0:01:16.2]} 29.
Ne2 {[%clk 0:00:19.9]} 29... Re4 {[%clk 0:01:13.2]} 30. Rf4 {[%clk 0:00:18.9]}
30... Rde6 {[%clk 0:01:10.7]} 31. Rxe4 {[%clk 0:00:18.1]} 31... Rxe4 {[%clk
0:01:10.7]} 32. Kf2 {[%clk 0:00:18]} 32... a5 {[%clk 0:01:04]} 33. g3 {[%clk
0:00:17.6]} 33... a4 {[%clk 0:01:02.8]} 34. a3 {[%clk 0:00:14.4]} 34... Rc4
{[%clk 0:00:59.7]} 35. c3 {[%clk 0:00:12.5]} 35... Be4 {[%clk 0:00:48.7]} 36.
Rc1 {[%clk 0:00:11.7]} 36... b3 {[%clk 0:00:42.2]} 37. Nf4 {[%clk 0:00:11.2]}
37... g5 {[%clk 0:00:38.8]} 38. Ng6 {[%clk 0:00:09.9]} 38... Bc2 {[%clk
0:00:36.7]} 39. Ne5 {[%clk 0:00:09.2]} 39... Re4 {[%clk 0:00:35.1]} 40. Re1
{[%clk 0:00:05]} 40... f4 {[%clk 0:00:15.9]} 41. Rxe4 {[%clk 0:00:04.8]} 41...
Bxe4 {[%clk 0:00:15.7]} 42. Nf7 {[%clk 0:00:04.7]} 42... fxg3+ {[%clk
0:00:09.4]} 43. Kxg3 {[%clk 0:00:04.6]} 43... Kd7 {[%clk 0:00:07.9]} 44. Nxg5
{[%clk 0:00:04.6]} 44... Bc2 {[%clk 0:00:08.4]} 45. Kf4 {[%clk 0:00:04.7]} 45...
Ke7 {[%clk 0:00:07.7]} 46. h4 {[%clk 0:00:04.8]} 46... c6 {[%clk 0:00:07.6]} 47.
Ke5 {[%clk 0:00:04.8]} 47... Kf8 {[%clk 0:00:05.8]} 48. h5 {[%clk 0:00:04.7]}
48... Kg7 {[%clk 0:00:05.2]} 49. Kd6 {[%clk 0:00:04.9]} 49... Kh6 {[%clk
0:00:05.6]} 50. Ne6 {[%clk 0:00:04.9]} 50... Kxh5 {[%clk 0:00:05.7]} 51. Kxc6
{[%clk 0:00:05]} 51... c4 {[%clk 0:00:05.7]} 52. Kc5 {[%clk 0:00:05.4]} 52...
Bd3 {[%clk 0:00:05.7]} 53. Nd8 {[%clk 0:00:05.3]} 53... Kg4 {[%clk 0:00:05.8]}
54. Kb4 {[%clk 0:00:05.5]} 54... Kf3 {[%clk 0:00:05.9]} 55. Nf7 {[%clk
0:00:04.9]} 55... Ke2 {[%clk 0:00:06.1]} 56. Ne5 {[%clk 0:00:05.2]} 56... Kd2
{[%clk 0:00:06.5]} 57. Nxc4+ {[%clk 0:00:04.2]} 57... Bxc4 {[%clk 0:00:05.7]}
58. Kxc4 {[%clk 0:00:04.5]} 58... Kc2 {[%clk 0:00:06.6]} 59. Kd4 {[%clk
0:00:04.7]} 59... Kxb2 {[%clk 0:00:07.5]} 60. c4 {[%clk 0:00:05.3]} 60... Kxa3
{[%clk 0:00:07.4]} 61. c5 {[%clk 0:00:06.2]} 61... b2 {[%clk 0:00:08.3]} 62. c6
{[%clk 0:00:07]} 62... b1=Q {[%clk 0:00:08.4]} 63. c7 {[%clk 0:00:07.8]} 63...
Qc1 {[%clk 0:00:08.7]} 64. c8=Q {[%clk 0:00:07.6]} 64... Qxc8 {[%clk 0:00:08.5]}
0-1

[Event "Late-Titled-Tuesday-Blitz-July-09-2024"]
[Site "Chess.com"]
[Date "2024.07.09"]
[Round "11"]
[White "Bugcrusher"]
[Black "luggevoila"]
[Result "0-1"]
[WhiteElo "2487"]
[BlackElo "2370"]
[TimeControl "180+1"]
[EndTime "16:06:31 PDT"]
[Termination "luggevoila won by resignation"]

1. e4 {[%clk 0:02:55.7]} 1... e5 {[%clk 0:02:59.8]} 2. Nf3 {[%clk 0:02:55]} 2...
Nc6 {[%clk 0:03:00.1]} 3. Bb5 {[%clk 0:02:54.6]} 3... Nge7 {[%clk 0:02:59.4]} 4.
O-O {[%clk 0:02:50.7]} 4... Ng6 {[%clk 0:02:59.2]} 5. d4 {[%clk 0:02:49.9]} 5...
exd4 {[%clk 0:03:00.1]} 6. Nxd4 {[%clk 0:02:49.9]} 6... Bc5 {[%clk 0:02:59.8]}
7. Be3 {[%clk 0:02:48.4]} 7... Nxd4 {[%clk 0:02:59.5]} 8. Bxd4 {[%clk
0:02:48.6]} 8... Bxd4 {[%clk 0:03:00.4]} 9. Qxd4 {[%clk 0:02:48.7]} 9... Qg5
{[%clk 0:02:59]} 10. Be2 {[%clk 0:02:20.9]} 10... Nf4 {[%clk 0:02:58.5]} 11. Bf3
{[%clk 0:02:09.9]} 11... Qxg2+ {[%clk 0:02:58.4]} 12. Bxg2 {[%clk 0:02:10]}
12... Ne2+ {[%clk 0:02:59.3]} 13. Kh1 {[%clk 0:02:10.5]} 13... Nxd4 {[%clk
0:03:00.2]} 14. Na3 {[%clk 0:02:07.5]} 14... O-O {[%clk 0:02:31.8]} 15. Rad1
{[%clk 0:02:01.3]} 15... Ne6 {[%clk 0:02:31]} 16. e5 {[%clk 0:01:58.4]} 16...
Rb8 {[%clk 0:02:03.3]} 17. f4 {[%clk 0:01:42.4]} 17... b5 {[%clk 0:02:00.4]} 18.
f5 {[%clk 0:01:35.1]} 18... Nc5 {[%clk 0:01:57.2]} 19. Rd5 {[%clk 0:01:29.5]}
19... Na4 {[%clk 0:01:49.3]} 20. Rxb5 {[%clk 0:01:28.3]} 20... Rxb5 {[%clk
0:01:21]} 21. Nxb5 {[%clk 0:01:27.3]} 21... Ba6 {[%clk 0:01:19.8]} 22. c4 {[%clk
0:01:27.3]} 22... c6 {[%clk 0:01:09.6]} 23. Nd6 {[%clk 0:01:24.1]} 23... Nxb2
{[%clk 0:01:06.2]} 24. Rf4 {[%clk 0:01:15.4]} 24... Nd3 {[%clk 0:01:02.9]} 25.
Rf3 {[%clk 0:00:59.3]} 25... Nxe5 {[%clk 0:01:00.1]} 26. Ra3 {[%clk 0:00:59.1]}
26... Nxc4 {[%clk 0:00:33.6]} 27. Nxc4 {[%clk 0:00:42.4]} 27... Bxc4 {[%clk
0:00:33.1]} 28. Rxa7 {[%clk 0:00:43.3]} 28... d5 {[%clk 0:00:27]} 29. Rc7 {[%clk
0:00:42.4]} 29... Bb5 {[%clk 0:00:20.9]} 30. Ra7 {[%clk 0:00:34.8]} 30... h5
{[%clk 0:00:17.5]} 31. a4 {[%clk 0:00:33.6]} 31... Re8 {[%clk 0:00:17.9]} 32.
axb5 {[%clk 0:00:20.7]} 32... Re1+ {[%clk 0:00:18]} 33. Bf1 {[%clk 0:00:21]}
33... Rxf1+ {[%clk 0:00:18.7]} 34. Kg2 {[%clk 0:00:21.6]} 34... Rc1 {[%clk
0:00:18]} 35. b6 {[%clk 0:00:20.9]} 35... Rb1 {[%clk 0:00:15.4]} 36. b7 {[%clk
0:00:20.8]} 36... Kh7 {[%clk 0:00:15.3]} 37. f6 {[%clk 0:00:18.4]} 37... gxf6
{[%clk 0:00:14.1]} 38. Kf3 {[%clk 0:00:16.8]} 38... c5 {[%clk 0:00:14.1]} 39.
Ke3 {[%clk 0:00:16.1]} 39... Rb3+ {[%clk 0:00:14.2]} 40. Kd2 {[%clk 0:00:16]}
40... Kg6 {[%clk 0:00:13.4]} 41. Kc2 {[%clk 0:00:16.9]} 41... Rb6 {[%clk
0:00:12.9]} 42. Ra5 {[%clk 0:00:15.8]} 42... Rxb7 {[%clk 0:00:11.7]} 43. Rxc5
{[%clk 0:00:16.7]} 43... Rd7 {[%clk 0:00:12.3]} 44. Kd3 {[%clk 0:00:16.6]} 44...
Kf5 {[%clk 0:00:12.8]} 45. Kd4 {[%clk 0:00:15.5]} 45... Ke6 {[%clk 0:00:13.3]}
46. Rc6+ {[%clk 0:00:15.5]} 46... Rd6 {[%clk 0:00:13.9]} 47. Rc8 {[%clk
0:00:15.3]} 47... Rd7 {[%clk 0:00:10.4]} 48. Rc6+ {[%clk 0:00:14.4]} 48... Kf5
{[%clk 0:00:10.7]} 49. Rc8 {[%clk 0:00:14.6]} 49... Kg4 {[%clk 0:00:09.6]} 50.
Rg8+ {[%clk 0:00:14.5]} 50... Kh3 {[%clk 0:00:08.2]} 51. Rh8 {[%clk 0:00:14.7]}
51... h4 {[%clk 0:00:07.9]} 52. Rh6 {[%clk 0:00:15.6]} 52... f5 {[%clk
0:00:07.3]} 53. Rf6 {[%clk 0:00:14.5]} 53... Kxh2 {[%clk 0:00:06.2]} 54. Rxf5
{[%clk 0:00:14.2]} 54... Kg3 {[%clk 0:00:06.7]} 55. Rg5+ {[%clk 0:00:14]} 55...
Kf4 {[%clk 0:00:06.5]} 56. Rh5 {[%clk 0:00:14.1]} 56... Kg4 {[%clk 0:00:07]} 57.
Rh8 {[%clk 0:00:13.9]} 57... f5 {[%clk 0:00:07]} 58. Rg8+ {[%clk 0:00:14.7]}
58... Kf3 {[%clk 0:00:07.3]} 59. Rh8 {[%clk 0:00:14.6]} 59... Kg3 {[%clk
0:00:07.6]} 60. Rg8+ {[%clk 0:00:15.1]} 60... Kf3 {[%clk 0:00:07.3]} 61. Rh8
{[%clk 0:00:15.4]} 61... Kg3 {[%clk 0:00:06.6]} 62. Rg8+ {[%clk 0:00:15.7]}
62... Kh3 {[%clk 0:00:07.3]} 63. Rf8 {[%clk 0:00:15.4]} 63... Kg4 {[%clk
0:00:06.1]} 64. Rg8+ {[%clk 0:00:15.5]} 64... Kh5 {[%clk 0:00:06.3]} 65. Rh8+
{[%clk 0:00:14.7]} 65... Kg5 {[%clk 0:00:06.6]} 66. Rg8+ {[%clk 0:00:15]} 66...
Kf6 {[%clk 0:00:06.5]} 67. Rh8 {[%clk 0:00:15.1]} 67... Kg5 {[%clk 0:00:06.5]}
68. Rg8+ {[%clk 0:00:15.1]} 68... Kh6 {[%clk 0:00:06.7]} 69. Rh8+ {[%clk
0:00:15.3]} 69... Rh7 {[%clk 0:00:07.1]} 70. Rf8 {[%clk 0:00:15.8]} 70... Kg5
{[%clk 0:00:06.9]} 71. Rg8+ {[%clk 0:00:15.8]} 71... Kf4 {[%clk 0:00:06.8]} 72.
Kxd5 {[%clk 0:00:16.1]} 72... h3 {[%clk 0:00:07.2]} 73. Rg1 {[%clk 0:00:15.9]}
73... h2 {[%clk 0:00:07.7]} 74. Rh1 {[%clk 0:00:16.6]} 74... Kg3 {[%clk
0:00:08.4]} 75. Ke5 {[%clk 0:00:17]} 75... Kg2 {[%clk 0:00:09]} 0-1

[Event "Late-Titled-Tuesday-Blitz-July-09-2024"]
[Site "Chess.com"]
[Date "2024.07.09"]
[Round "11"]
[White "Bkmzzzzz"]
[Black "ernestina08chess"]
[Result "0-1"]
[WhiteElo "2402"]
[BlackElo "2319"]
[TimeControl "180+1"]
[EndTime "16:06:32 PDT"]
[Termination "ernestina08chess won by resignation"]

1. e4 {[%clk 0:03:00.9]} 1... c5 {[%clk 0:02:57.6]} 2. Nf3 {[%clk 0:03:00.2]}
2... d6 {[%clk 0:02:58]} 3. d4 {[%clk 0:02:59.5]} 3... cxd4 {[%clk 0:02:58.7]}
4. Qxd4 {[%clk 0:02:59.7]} 4... a6 {[%clk 0:02:58]} 5. Be3 {[%clk 0:02:58.3]}
5... Nc6 {[%clk 0:02:58.5]} 6. Qb6 {[%clk 0:02:58.8]} 6... Qxb6 {[%clk
0:02:56.8]} 7. Bxb6 {[%clk 0:02:59.7]} 7... Bg4 {[%clk 0:02:55.1]} 8. Nc3 {[%clk
0:02:50.4]} 8... Bxf3 {[%clk 0:02:47.9]} 9. gxf3 {[%clk 0:02:51.3]} 9... e6
{[%clk 0:02:44.7]} 10. O-O-O {[%clk 0:02:51.1]} 10... Be7 {[%clk 0:02:42.8]} 11.
Bc7 {[%clk 0:02:47.3]} 11... Kd7 {[%clk 0:02:41.5]} 12. Bb6 {[%clk 0:02:47.9]}
12... Ke8 {[%clk 0:02:14.5]} 13. Be2 {[%clk 0:02:38.6]} 13... Rc8 {[%clk
0:02:12.7]} 14. Kb1 {[%clk 0:02:36.4]} 14... Nf6 {[%clk 0:02:10.6]} 15. f4
{[%clk 0:02:32.2]} 15... Nd7 {[%clk 0:02:08.6]} 16. Na4 {[%clk 0:02:29.5]} 16...
Nxb6 {[%clk 0:02:04.8]} 17. Nxb6 {[%clk 0:02:30.4]} 17... Rd8 {[%clk 0:02:00.8]}
18. Bf3 {[%clk 0:02:25.8]} 18... Bf6 {[%clk 0:01:59.7]} 19. Nc4 {[%clk
0:01:56.7]} 19... Ke7 {[%clk 0:01:50.2]} 20. e5 {[%clk 0:01:53.8]} 20... dxe5
{[%clk 0:01:47.5]} 21. Bxc6 {[%clk 0:01:50.3]} 21... bxc6 {[%clk 0:01:44.2]} 22.
fxe5 {[%clk 0:01:50.6]} 22... Bg5 {[%clk 0:01:42.1]} 23. b3 {[%clk 0:01:38.1]}
23... Bf4 {[%clk 0:01:36.2]} 24. h3 {[%clk 0:01:36]} 24... f6 {[%clk 0:01:28.9]}
25. exf6+ {[%clk 0:01:32.9]} 25... gxf6 {[%clk 0:01:28.6]} 26. Rhe1 {[%clk
0:01:25.1]} 26... Rxd1+ {[%clk 0:01:20.7]} 27. Rxd1 {[%clk 0:01:26]} 27... Rg8
{[%clk 0:01:20.9]} 28. Nb6 {[%clk 0:01:21.2]} 28... Bd6 {[%clk 0:01:12.5]} 29.
c4 {[%clk 0:01:12.8]} 29... c5 {[%clk 0:01:11.2]} 30. Kc2 {[%clk 0:01:08.4]}
30... Rb8 {[%clk 0:01:08]} 31. Na4 {[%clk 0:01:07.7]} 31... Rg8 {[%clk
0:01:04.3]} 32. Nb6 {[%clk 0:01:06.7]} 32... h5 {[%clk 0:00:51.5]} 33. Rd2
{[%clk 0:00:59.6]} 33... f5 {[%clk 0:00:50.9]} 34. Kd1 {[%clk 0:00:49.1]} 34...
Bf4 {[%clk 0:00:31]} 35. Rd7+ {[%clk 0:00:48.3]} 35... Kf6 {[%clk 0:00:31.6]}
36. Rh7 {[%clk 0:00:47.4]} 36... Kg6 {[%clk 0:00:30.5]} 37. Ra7 {[%clk 0:00:45]}
37... Kf6 {[%clk 0:00:28.5]} 38. Nd7+ {[%clk 0:00:41.5]} 38... Kg5 {[%clk
0:00:24.8]} 39. Nxc5 {[%clk 0:00:39.6]} 39... e5 {[%clk 0:00:16.9]} 40. Rxa6
{[%clk 0:00:34.2]} 40... Kh4 {[%clk 0:00:15.2]} 41. Ke2 {[%clk 0:00:32.8]} 41...
Kxh3 {[%clk 0:00:14.3]} 42. Nd3 {[%clk 0:00:33]} 42... Bh2 {[%clk 0:00:10]} 43.
Rh6 {[%clk 0:00:29.8]} 43... h4 {[%clk 0:00:10.2]} 44. Ne1 {[%clk 0:00:28.3]}
44... e4 {[%clk 0:00:09]} 45. c5 {[%clk 0:00:22.6]} 45... f4 {[%clk 0:00:07.5]}
46. f3 {[%clk 0:00:20.4]} 46... e3 {[%clk 0:00:04.8]} 47. c6 {[%clk 0:00:20.8]}
47... Bg3 {[%clk 0:00:04.4]} 48. Nd3 {[%clk 0:00:20.5]} 48... Kg2 {[%clk
0:00:03.1]} 49. c7 {[%clk 0:00:20.4]} 49... h3 {[%clk 0:00:03.4]} 50. Rg6 {[%clk
0:00:19.2]} 50... Rc8 {[%clk 0:00:02.8]} 51. Nxf4+ {[%clk 0:00:18.6]} 51... Kh2
{[%clk 0:00:02.7]} 52. Nh5 {[%clk 0:00:18.1]} 52... Bd6 {[%clk 0:00:01.4]} 53.
Kxe3 {[%clk 0:00:17.8]} 53... Bxc7 {[%clk 0:00:02.3]} 54. f4 {[%clk 0:00:17.4]}
54... Kh1 {[%clk 0:00:03.2]} 55. Kf2 {[%clk 0:00:17]} 55... Bb6+ {[%clk
0:00:04.1]} 56. Kf3 {[%clk 0:00:16.9]} 56... Rc3+ {[%clk 0:00:04.4]} 57. Kg4
{[%clk 0:00:16.7]} 57... Bg1 {[%clk 0:00:03.5]} 58. Ng3+ {[%clk 0:00:15.6]}
58... Kh2 {[%clk 0:00:03.7]} 59. Nf1+ {[%clk 0:00:15.8]} 59... Kg2 {[%clk
0:00:04.2]} 60. f5 {[%clk 0:00:13.7]} 60... Kxf1 {[%clk 0:00:04]} 61. f6 {[%clk
0:00:13.1]} 61... h2 {[%clk 0:00:04.6]} 62. Rh6 {[%clk 0:00:13.5]} 62... Rc2
{[%clk 0:00:03.6]} 63. f7 {[%clk 0:00:13.2]} 63... Rf2 {[%clk 0:00:04.2]} 64. b4
{[%clk 0:00:09.3]} 64... Kg2 {[%clk 0:00:04.1]} 65. b5 {[%clk 0:00:06.1]} 65...
h1=Q {[%clk 0:00:04.5]} 66. a4 {[%clk 0:00:06.8]} 66... Rxf7 {[%clk 0:00:04.3]}
67. Rxh1 {[%clk 0:00:06.2]} 67... Kxh1 {[%clk 0:00:05.2]} 68. Kg5 {[%clk
0:00:06.4]} 68... Bb6 {[%clk 0:00:05.3]} 0-1